bitfinex/quotes_ETHUSD_20240731
["timestamp","ask_amount","ask_price","bid_price","bid_amount"]
[1722440542338,1.88981968,3319.4,3319.2,3.36007862]
[1722440542540,1.88981968,3319.4,3319.2,3.42032774]
[1722440542861,1.88981968,3319.3,3319.2,3.42032774]
[1722440543007,3.01215,3319.9,3319.2,3.42032774]
[1722440543008,1.88981968,3319.4,3319.2,0.34730862]
[1722440543205,1.88981968,3319.3,3319.2,0.40755775]
[1722440543459,2.20482056,3319.6,3319.2,0.34730862]
[1722440543611,1.89107786,3319.3,3319.2,0.34730862]
[1722440543807,5.61832216,3319.9,3319.2,0.34730862]
[1722440544121,2.20628331,3319.6,3319.3,0.06024638]
[1722440545538,2.40111647,3319.5,3319.1,0.4]
[1722440545854,3.01273,3319.3,3319.1,0.4]
[1722440546068,6.35524392,3319.2,3319.1,0.4]
[1722440546229,5.81385164,3319.2,3319.1,0.4]
[1722440546409,8.82662164,3319.2,3319.1,0.4]
[1722440546610,0.19490948,3319.2,3319.1,0.4]
[1722440547054,5.10593358,3319.3,3319.1,0.51344992]
[1722440547055,2.60680306,3319.3,3319.1,0.51344992]
[1722440547259,2.20694049,3319.2,3319.1,0.51344992]
[1722440547462,0.19502379,3319.2,3319.1,0.51344992]
[1722440547667,2.206942,3319.2,3319.1,0.51344992]
[1722440547812,2.206942,3319.2,3319.1,3.52630992]
[1722440548016,2.206942,3319.4,3319.1,4.18626427]
[1722440548217,2.206942,3319.4,3319.1,3.52630992]
[1722440548417,2.206942,3319.4,3319.2,3.01277]
[1722440548642,2.206942,3319.6,3319.2,0.06025133]
[1722440548847,2.206942,3319.6,3319.3,3.12614917]
[1722440549046,2.206942,3319.7,3319.3,3.01268]
[1722440549315,5.61898251,3320.0,3319.4,0.11344354]
[1722440549316,2.206942,3319.5,3319.4,0.11344354]
[1722440549521,3.01264,3319.4,3319.1,0.4]
[1722440549768,0.16649437,3319.3,3319.1,0.4]
[1722440550259,5.61868186,3319.4,3319.1,0.4]
[1722440550510,0.166634,3319.2,3319.1,0.4]
[1722440550709,2.60604186,3319.2,3319.1,0.4]
[1722440550858,0.166634,3319.2,3319.1,0.4]
[1722440551802,2.3728962,3319.2,3319.1,0.51344992]
[1722440552007,2.2062622,3319.3,3319.1,0.51344992]
[1722440552214,2.3728604,3319.2,3319.1,0.51344992]
[1722440552513,2.2062622,3319.2,3319.1,0.51344992]
[1722440552715,2.2062622,3319.3,3319.1,0.51344992]
[1722440553014,2.2062622,3319.4,3319.1,0.51344992]
[1722440553208,1.89034342,3319.2,3319.1,3.58656017]
[1722440553509,1.89031651,3319.2,3319.1,3.52630992]
[1722440553997,2.2737,3319.9,3319.1,3.52630992]
[1722440553998,1.89031651,3319.3,3319.2,3.01277]
[1722440554168,1.89043322,3319.3,3319.2,3.07301851]
[1722440554374,1.89043322,3319.3,3319.2,3.12620042]
[1722440554699,1.89043322,3319.3,3319.2,4.01650646]
[1722440555094,1.89043322,3319.3,3319.2,7.02927646]
[1722440555299,1.89043322,3319.4,3319.3,6.02536]
[1722440555506,1.89043322,3319.5,3319.3,0.06024681]
[1722440555677,9.71289244,3320.1,3319.5,6.025]
[1722440555678,1.89043322,3319.6,3319.5,6.025]
[1722440555994,1.89043322,3319.6,3319.5,6.75826499]
[1722440556195,1.89043322,3319.6,3319.5,3.74576499]
[1722440556614,7.1078,3320.1,3319.7,3.0123]
[1722440556761,2.20556281,3319.9,3319.5,6.75821499]
[1722440556961,2.20556281,3319.9,3319.8,0.11331653]
[1722440557160,0.16626857,3319.9,3319.5,6.6447416]
[1722440557399,2.20534846,3319.9,3319.8,0.11331653]
[1722440557696,2.37155799,3319.9,3319.8,0.11331653]
[1722440557913,2.37155799,3319.9,3319.5,3.01249]
[1722440558120,2.20534846,3319.8,3319.6,3.12574777]
[1722440558307,2.20534846,3319.9,3319.6,3.12574777]
[1722440558617,2.20534846,3319.8,3319.6,3.43832255]
[1722440558811,2.20534846,3319.9,3319.6,3.43832255]
[1722440559176,2.20534846,3319.9,3319.6,6.51090453]
[1722440559379,2.20534846,3319.9,3319.6,0.48618453]
[1722440559591,2.20534846,3319.9,3319.7,3.01231]
[1722440559913,2.2048757,3319.9,3319.8,3.01222]
[1722440560119,2.2048757,3319.9,3319.8,3.12553653]
[1722440560303,2.2048757,3319.9,3319.8,0.11331653]
[1722440560506,2.2048757,3319.9,3319.8,0.34984833]
[1722440560695,7.1078,3320.5,3319.8,0.11331653]
[1722440560696,2.2048757,3320.0,3319.8,0.11331653]
[1722440561032,2.2048757,3319.9,3319.6,0.37281679]
[1722440561324,2.2048757,3319.9,3319.7,0.11334215]
[1722440561699,2.2048757,3319.9,3319.7,3.12566215]
[1722440562780,13.24090289,3320.5,3319.7,3.12566215]
[1722440562781,2.2048757,3320.0,3319.7,3.12566215]
[1722440562993,10.11941,3320.5,3319.7,3.77675704]
[1722440563284,10.11941,3320.5,3319.7,3.12561215]
[1722440563285,2.20548082,3320.0,3319.7,3.12561215]
[1722440563498,2.20548082,3320.2,3320.0,3.01204]
[1722440563699,2.20548082,3320.2,3320.1,0.11309257]
[1722440564003,2.20548082,3320.3,3320.1,0.11309257]
[1722440564402,2.20548082,3320.4,3320.1,3.01195]
[1722440564606,2.20548082,3320.4,3320.1,3.01189]
[1722440565133,7.1078,3320.5,3320.1,3.01189]
[1722440565134,2.20548082,3320.3,3320.1,3.01189]
[1722440565539,2.20548082,3320.4,3320.1,3.01189]
[1722440565730,7.1078,3320.5,3320.1,3.01189]
[1722440565937,2.20382623,3320.4,3320.1,3.01189]
[1722440566252,2.20382623,3320.4,3320.2,3.01186]
[1722440566464,2.20382623,3320.4,3319.9,3.07231577]
[1722440566465,2.20366194,3320.4,3319.9,3.07231577]
[1722440566643,2.20366194,3320.4,3320.3,0.11282067]
[1722440566961,2.20366194,3320.4,3320.0,3.01204]
[1722440567133,2.20366194,3320.3,3320.0,3.01204]
[1722440567443,2.20366194,3320.3,3319.9,3.01212]
[1722440567653,1.88787925,3320.0,3319.9,3.01212]
[1722440567848,1.88787925,3320.1,3319.7,3.01224]
[1722440568151,1.88787925,3320.0,3319.9,3.01213]
[1722440569612,5.41336,3320.7,3319.9,3.01213]
[1722440569949,1.88800737,3320.0,3319.9,3.01213]
[1722440570309,1.88800737,3320.1,3319.9,3.01213]
[1722440570723,1.88800737,3320.0,3319.9,3.01213]
[1722440571151,1.88800737,3320.0,3319.9,3.34659115]
[1722440571456,2.20267527,3320.4,3320.0,3.01204]
[1722440571756,2.20267527,3320.3,3320.0,3.01204]
[1722440572364,2.20267527,3320.3,3319.9,3.01207]
[1722440572511,1.88823475,3320.0,3319.9,3.01207]
[1722440572711,5.41332,3320.7,3319.9,3.614491]
[1722440573016,1.88819354,3320.0,3319.9,3.1249104]
[1722440574115,1.88819354,3320.0,3319.9,0.1128404]
[1722440574310,1.88819354,3320.0,3319.8,3.01222]
[1722440574560,1.88819354,3320.0,3319.9,0.1128404]
[1722440575412,2.20289247,3320.2,3319.9,0.1128404]
[1722440575610,2.20289247,3320.2,3319.3,3.01264]
[1722440575611,2.20289247,3320.0,3319.4,3.0]
[1722440575817,1.88760589,3319.6,3319.2,3.01273]
[1722440576062,3.01215,3319.9,3319.2,3.01273]
[1722440576359,1.88739332,3319.5,3319.2,3.01273]
[1722440576510,3.01215,3319.9,3319.2,3.01273]
[1722440576716,1.88744468,3319.5,3319.2,3.01273]
[1722440576916,1.88744468,3319.5,3319.2,3.01271]
[1722440577156,1.88744468,3319.5,3319.2,6.02543]
[1722440577362,1.88744468,3319.5,3319.2,3.01271]
[1722440577614,1.88744468,3319.3,3319.2,3.01271]
[1722440578061,1.88744468,3319.4,3319.2,3.01271]
[1722440578230,1.88744468,3319.3,3319.1,0.4]
[1722440578579,2.20201879,3319.4,3319.1,0.4]
[1722440579068,0.23681292,3319.6,3319.1,0.4]
[1722440579069,2.20201879,3319.3,3319.1,0.4]
[1722440579361,3.24924292,3319.6,3319.1,0.4]
[1722440579531,2.20165149,3319.3,3319.1,0.4]
[1722440579916,2.20165149,3319.4,3319.1,0.4]
[1722440580156,1.88708932,3319.2,3319.1,3.41285]
[1722440580505,2.20165149,3319.5,3319.1,3.01285]
[1722440580770,1.88723349,3319.2,3319.1,3.01285]
[1722440581560,2.20165149,3319.4,3318.7,3.01316]
[1722440581801,1.88750475,3318.9,3318.7,3.01316]
[1722440581974,1.88750475,3318.8,3318.5,6.02671]
[1722440582142,1.88739043,3318.7,3318.5,3.01332]
[1722440582648,2.20165149,3319.1,3318.5,3.01332]
[1722440582649,1.8870395,3318.8,3318.5,3.01332]
[1722440583013,1.8870395,3318.8,3318.2,2.3378]
[1722440583215,1.8870395,3318.6,3318.3,3.01357]
[1722440583638,1.8870395,3318.5,3318.3,3.01351]
[1722440584064,1.8870395,3318.4,3318.3,3.01351]
[1722440584242,1.8870395,3318.5,3318.3,3.01351]
[1722440584451,1.8870395,3318.6,3318.3,3.01351]
[1722440585766,1.88618193,3318.6,3318.3,3.01351]
[1722440586119,1.88618193,3318.6,3318.2,0.53378]
[1722440586440,1.57151987,3318.3,3318.1,3.01372]
[1722440587257,1.57151987,3318.3,3317.9,5.29061]
[1722440587559,1.57151987,3318.1,3317.9,3.01395]
[1722440587722,1.57151987,3318.2,3317.9,3.01395]
[1722440587923,1.57151987,3318.1,3317.9,3.01395]
[1722440588242,1.57151987,3318.1,3318.0,3.01386]
[1722440588447,1.57151987,3318.2,3318.0,3.01386]
[1722440589020,1.57151987,3318.2,3317.9,0.602808]
[1722440589670,1.88618193,3318.2,3317.5,3.01426]
[1722440589872,1.56952806,3317.9,3317.5,3.01426]
[1722440590189,1.56952806,3317.7,3317.4,3.0144]
[1722440590391,1.56952806,3317.8,3317.5,3.01431]
[1722440591791,4.16318193,3318.1,3317.6,3.12422621]
[1722440591792,1.56952806,3317.9,3317.6,3.12422621]
[1722440592137,2.277,3318.1,3317.6,3.12422621]
[1722440592339,1.56844309,3317.9,3317.6,3.12422621]
[1722440592735,1.56844309,3317.9,3317.6,0.11002621]
[1722440593483,1.56844309,3318.0,3317.6,0.11002621]
[1722440593650,1.56844309,3318.0,3317.6,0.78417963]
[1722440594045,1.56844309,3317.9,3317.6,0.78417963]
[1722440594242,1.56844309,3318.0,3317.6,0.78417963]
[1722440594762,1.56632343,3318.0,3317.6,0.78417963]
[1722440595132,1.56632343,3318.0,3317.6,3.79836963]
[1722440595337,3.01351,3318.4,3317.7,0.37983696]
[1722440595626,1.5661626,3318.1,3317.8,0.10997491]
[1722440595881,1.5661626,3318.1,3317.6,3.68834342]
[1722440596084,1.5661626,3318.1,3317.9,0.10994926]
[1722440596393,1.5661626,3318.1,3318.0,0.10992362]
[1722440596688,4.5799326,3318.1,3317.4,3.0144]
[1722440596984,1.5661626,3318.1,3317.5,0.11005186]
[1722440597143,1.5661626,3318.1,3317.5,3.12435186]
[1722440598388,4.5799226,3318.2,3317.5,0.11005186]
[1722440598756,3.01376,3318.2,3317.5,0.11005186]
[1722440598969,1.56449621,3318.1,3317.5,0.11005186]
[1722440599506,4.57825621,3318.2,3317.5,0.11005186]
[1722440600079,1.56449621,3318.2,3317.5,0.47190659]
[1722440600302,4.57822621,3318.2,3317.5,0.47190659]
[1722440600628,3.01373,3318.2,3317.5,0.47190659]
[1722440603302,3.01373,3318.2,3317.5,3.48621659]
[1722440603870,3.01373,3318.2,3317.5,0.47190659]
[1722440605488,1.56322257,3318.4,3317.6,0.34862966]
[1722440605704,7.1078,3318.5,3318.0,3.01386]
[1722440606106,7.1078,3318.5,3318.1,0.11018011]
[1722440606613,7.1078,3318.5,3317.8,3.01396]
[1722440606812,7.1078,3318.5,3318.2,0.11015446]
[1722440607031,7.1078,3318.5,3318.2,3.01367]
[1722440607247,7.1078,3318.5,3318.3,0.11012882]
[1722440607448,7.1078,3318.5,3318.1,3.01375]
[1722440607593,7.1078,3318.5,3318.4,0.11010318]
[1722440607796,7.1078,3318.5,3318.0,3.07407246]
[1722440607797,7.1078,3318.5,3318.1,3.01376]
[1722440607993,7.1078,3318.5,3318.4,0.11010318]
[1722440608193,7.1078,3318.5,3318.2,3.01361]
[1722440608521,7.1078,3318.5,3318.4,0.11010318]
[1722440608692,4.57661345,3318.9,3318.3,0.11012882]
[1722440608897,4.57661345,3318.9,3318.4,0.11010318]
[1722440609111,1.56356345,3318.9,3318.3,3.01358]
[1722440609340,4.57665345,3318.9,3318.0,3.07408022]
[1722440609537,4.57670345,3318.8,3318.4,0.11010318]
[1722440609840,3.01309,3318.9,3318.2,3.01361]
[1722440609841,4.57665345,3318.9,3318.2,3.01361]
[1722440610043,4.57665345,3318.9,3318.5,0.11007754]
[1722440610200,3.01325,3318.7,3318.1,0.30740802]
[1722440610553,4.57681345,3318.7,3318.6,0.11060979]
[1722440610722,5.46425,3318.5,3317.7,5.42558]
[1722440611237,2.4508,3318.5,3317.8,0.11082106]
[1722440611440,6.02713,3318.4,3317.6,3.01422]
[1722440611617,3.01355,3318.4,3317.9,0.11079541]
[1722440611956,3.01355,3318.4,3317.6,3.01422]
[1722440612116,3.01355,3318.4,3318.0,0.11076977]
[1722440612449,3.01355,3318.4,3317.6,3.01422]
[1722440612664,3.01355,3318.4,3318.1,0.11074412]
[1722440612829,3.01373,3318.2,3317.5,3.01429]
[1722440613169,3.01366,3318.3,3317.4,3.01433]
[1722440613325,3.01369,3318.2,3317.5,0.301433]
[1722440614430,1.56417398,3318.3,3317.5,0.301433]
[1722440614755,4.57773398,3318.4,3317.5,0.36171533]
[1722440615061,4.57879505,3318.3,3317.6,3.01422]
[1722440615217,4.57879505,3318.3,3317.5,0.36171533]
[1722440615218,3.01368,3318.2,3317.5,3.315733]
[1722440615854,3.01368,3318.2,3317.3,3.01442]
[1722440616027,4.57894875,3318.1,3317.3,3.01442]
[1722440616354,1.56515875,3317.9,3317.3,3.01442]
[1722440616715,3.95645875,3317.9,3317.2,6.01458]
[1722440617244,3.95645875,3317.9,3317.3,3.01442]
[1722440617414,1.56515875,3317.8,3317.3,3.01442]
[1722440617620,1.56515875,3317.8,3317.3,3.917325]
[1722440618523,1.56515875,3317.8,3317.2,3.0]
[1722440618524,1.56698192,3317.8,3317.2,3.0]
[1722440618725,1.56698192,3317.8,3317.1,3.01463]
[1722440618941,1.56698192,3317.7,3316.9,3.01483]
[1722440619140,1.56698192,3317.7,3316.6,3.0]
[1722440619141,4.58135192,3317.5,3316.6,3.01506]
[1722440619365,4.58135192,3317.5,3316.5,2.3963]
[1722440619366,1.56698192,3317.3,3316.7,3.01504]
[1722440619572,3.01437,3317.5,3316.6,3.01505]
[1722440619573,1.56698192,3317.2,3316.6,3.01505]
[1722440619716,1.56698192,3317.1,3316.7,0.541135]
[1722440619917,1.56698192,3317.2,3316.7,3.556125]
[1722440620342,1.56698192,3317.1,3316.7,3.556125]
[1722440621376,1.56698192,3317.1,3316.7,0.541135]
[1722440621538,1.56760418,3317.0,3316.5,3.01517]
[1722440621948,7.35423502,3317.3,3316.5,3.01517]
[1722440621949,1.56760418,3317.1,3316.5,3.01517]
[1722440622232,1.56760418,3317.0,3316.5,3.01517]
[1722440622452,1.56760418,3317.1,3316.5,3.01517]
[1722440622667,1.56760418,3317.0,3316.5,3.618214]
[1722440622851,1.56760418,3317.0,3316.5,0.603044]
[1722440623232,1.56760418,3317.0,3316.5,3.618234]
[1722440623438,1.56760418,3317.0,3316.5,3.01519]
[1722440624148,1.56760418,3317.0,3316.6,38.01512]
[1722440624463,1.56760418,3317.1,3316.7,0.06030009]
[1722440624613,1.56832206,3317.3,3317.0,3.01477]
[1722440625069,1.56832206,3317.3,3317.1,3.01466]
[1722440625362,1.56832206,3317.3,3317.2,3.01459]
[1722440625576,1.56832206,3317.4,3317.3,3.01449]
[1722440625761,1.56832206,3317.5,3317.2,3.11842382]
[1722440625923,3.01449,3317.3,3317.2,0.10389382]
[1722440626244,3.0147,3317.1,3316.3,3.01534]
[1722440626442,3.0147,3317.1,3315.9,9.5709]
[1722440626443,1.56798481,3316.8,3316.2,3.01546]
[1722440626643,1.56798481,3316.7,3316.4,0.10080887]
[1722440626845,1.56798481,3316.7,3316.2,3.01546]
[1722440627068,1.56798481,3316.7,3316.5,0.1007832]
[1722440627223,1.56798481,3316.7,3316.3,3.316946]
[1722440627569,4.89649178,3316.9,3316.6,0.10075753]
[1722440627774,1.56858334,3316.7,3316.1,3.01553]
[1722440627972,3.01491,3316.9,3316.7,0.10073186]
[1722440628133,3.01491,3316.9,3316.2,3.918592]
[1722440628335,1.88229755,3317.0,3316.2,3.918592]
[1722440628336,1.5685833,3316.7,3316.2,3.918592]
[1722440628640,1.5685833,3316.7,3316.3,0.10083454]
[1722440629332,1.5685833,3316.6,3316.3,0.10083454]
[1722440629533,1.5685833,3316.7,3316.3,0.50277719]
[1722440630276,1.5685833,3316.7,3316.3,3.51814719]
[1722440630564,1.5685833,3316.8,3316.4,3.0153]
[1722440630782,1.5685833,3316.8,3316.6,3.01508]
[1722440630973,1.5685833,3316.8,3316.6,3.618118]
[1722440631352,1.5685833,3316.8,3316.7,0.10073186]
[1722440631554,1.5685833,3316.8,3316.7,6.13081186]
[1722440631868,1.5685833,3317.0,3316.8,3.01495]
[1722440632219,1.2664833,3317.0,3316.9,0.10068053]
[1722440632782,8.99009755,3317.3,3316.8,3.01495]
[1722440633130,8.99009755,3317.3,3316.9,0.10068053]
[1722440633327,1.88229755,3317.2,3316.9,0.10068053]
[1722440633642,1.88229755,3317.2,3316.8,3.01495]
[1722440633856,1.88229755,3317.0,3316.6,3.618098]
[1722440634059,1.88197751,3317.0,3316.9,0.10068053]
[1722440634226,1.88197751,3317.0,3316.5,3.01517]
[1722440634423,1.88209987,3316.8,3316.4,3.01527]
[1722440634675,3.0146,3317.2,3316.4,3.65853727]
[1722440634676,1.88209987,3316.9,3316.4,3.65853727]
[1722440634973,1.88209987,3316.8,3316.4,3.65853727]
[1722440635171,1.88209987,3316.9,3316.4,3.65853727]
[1722440635334,1.88209987,3316.8,3316.4,3.65853727]
[1722440635672,1.88209987,3316.9,3316.4,3.01527]
[1722440636161,1.88209987,3316.8,3316.4,3.01527]
[1722440636365,1.88209987,3316.9,3316.4,3.01527]
[1722440636568,1.88209987,3316.8,3316.4,3.01527]
[1722440636941,1.88209987,3316.9,3316.4,3.01527]
[1722440637528,2.3053,3317.0,3316.4,3.01527]
[1722440637728,1.88153082,3316.9,3316.4,3.01527]
[1722440638365,1.88153082,3316.9,3316.4,3.65853727]
[1722440638769,1.88153082,3316.9,3316.1,3.01558]
[1722440638969,1.88153082,3316.8,3316.1,3.01558]
[1722440639159,1.88153082,3316.7,3316.1,3.01558]
[1722440639359,1.88153082,3316.7,3316.0,3.0]
[1722440639360,1.56804667,3316.4,3316.0,6.01559]
[1722440639561,1.56804667,3316.5,3316.1,0.830649]
[1722440639758,1.56804667,3316.5,3316.2,3.01549]
[1722440640164,1.56804667,3316.4,3316.2,3.01549]
[1722440640376,1.56804667,3316.5,3316.2,3.01549]
[1722440640947,1.56782694,3316.5,3316.2,3.01549]
[1722440641148,3.01491,3316.9,3316.2,3.01549]
[1722440641465,1.56771463,3316.5,3316.2,3.01549]
[1722440641669,1.56771463,3316.5,3316.3,0.1010003]
[1722440642804,1.56771463,3316.5,3316.4,3.01531]
[1722440642967,1.56771463,3316.7,3316.6,3.01513]
[1722440643297,1.56771463,3316.8,3316.7,3.01504]
[1722440643461,1.56771463,3316.9,3316.8,0.61310933]
[1722440643650,1.88125755,3317.2,3316.8,0.61310933]
[1722440643852,1.56818062,3316.9,3316.8,3.01495]
[1722440644078,1.88185476,3317.1,3316.9,0.1008463]
[1722440644288,1.88185476,3317.1,3317.0,3.01477]
[1722440644507,9.30329722,3317.6,3317.0,3.11558064]
[1722440644508,1.56852258,3317.3,3317.0,3.11558064]
[1722440644713,1.56852258,3317.2,3317.1,3.01468]
[1722440645006,1.56852258,3317.2,3317.1,3.62770606]
[1722440645172,1.56852258,3317.3,3317.2,3.01459]
[1722440645553,1.56852258,3317.4,3317.2,3.11535932]
[1722440645759,1.56852258,3317.4,3317.3,3.01449]
[1722440646267,8.98965476,3317.6,3317.3,0.10074366]
[1722440646471,1.88185476,3317.5,3317.1,3.01467]
[1722440646670,1.56880453,3317.2,3317.1,3.01467]
[1722440647302,3.01397,3317.9,3317.1,3.01467]
[1722440647499,1.5687762,3317.2,3317.1,3.01467]
[1722440648987,1.56931173,3317.3,3317.2,3.01452]
[1722440649609,1.88299503,3317.5,3317.2,0.602919]
[1722440649805,1.88299503,3317.5,3317.1,3.01467]
[1722440649952,1.56937773,3317.2,3317.1,3.01467]
[1722440650154,1.56937773,3317.3,3317.1,3.01467]
[1722440650611,3.01397,3317.9,3317.1,3.01467]
[1722440650808,1.56955425,3317.2,3317.1,3.01467]
[1722440651034,1.56955425,3317.2,3317.1,3.617614]
[1722440651230,1.56955425,3317.2,3317.1,6.632294]
[1722440651441,1.56955425,3317.3,3317.2,3.01459]
[1722440651791,1.56955425,3317.3,3317.2,6.02918]
[1722440652017,10.5737757,3318.1,3317.5,3.01426]
[1722440652018,2.19737595,3318.0,3317.5,3.01426]
[1722440652327,9.30517595,3318.1,3317.5,3.01426]
[1722440652880,10.12157,3318.1,3317.6,0.1005408]
[1722440653183,10.12157,3318.1,3316.9,3.01482]
[1722440653184,3.01412,3317.8,3316.7,3.01497]
[1722440653427,8.51052,3317.8,3317.7,0.10051515]
[1722440653752,3.01427,3317.6,3316.8,3.01494]
[1722440654055,1.5701529,3316.9,3316.8,3.01494]
[1722440654188,2.19821406,3317.4,3316.8,3.01494]
[1722440654384,2.19821406,3317.3,3316.8,3.01494]
[1722440654615,2.19821406,3317.4,3316.8,3.01494]
[1722440654822,3.01432,3317.5,3316.8,3.01494]
[1722440655130,2.19882845,3317.3,3316.8,3.01494]
[1722440655329,3.01432,3317.5,3316.8,3.01494]
[1722440655330,2.19882845,3317.4,3316.8,3.01494]
[1722440655485,2.19882845,3317.2,3316.8,3.01488]
[1722440655691,10.12198,3317.7,3316.9,3.0148]
[1722440655692,2.19882845,3317.4,3316.9,3.0148]
[1722440655929,1.88535534,3317.1,3316.8,0.301488]
[1722440656131,1.88535534,3317.0,3316.5,3.01515]
[1722440656310,2.2766,3317.2,3316.4,3.01524]
[1722440656311,1.88535534,3316.8,3316.4,3.01524]
[1722440656509,1.88535534,3316.8,3316.1,2.4243]
[1722440656510,1.88535534,3316.7,3316.5,3.0152]
[1722440656817,2.2766,3317.2,3316.5,3.0152]
[1722440656818,1.88535534,3316.8,3316.7,3.01504]
[1722440657025,2.2766,3317.2,3316.7,3.01504]
[1722440657354,1.88542766,3316.8,3316.7,3.11588845]
[1722440657859,1.88542766,3316.8,3316.7,3.72899729]
[1722440658566,2.1996656,3317.1,3316.8,3.01488]
[1722440658708,2.1996656,3317.1,3316.7,0.10084845]
[1722440658906,2.1996656,3317.1,3316.6,3.01507]
[1722440659104,1.88634937,3316.8,3316.7,3.01504]
[1722440659357,2.1996656,3317.0,3316.8,3.01493]
[1722440659503,8.47463289,3317.6,3316.8,3.01493]
[1722440659504,2.1996656,3317.1,3316.8,3.01493]
[1722440660157,2.1996656,3317.2,3317.0,3.01477]
[1722440660465,2.1996656,3317.2,3317.0,3.0147]
[1722440660622,2.1996656,3317.3,3316.7,3.01504]
[1722440660807,2.1996656,3317.0,3316.7,3.01504]
[1722440661245,2.3667471,3316.9,3316.7,3.01504]
[1722440661443,2.1996656,3316.9,3316.5,3.01516]
[1722440661649,2.36677126,3316.8,3316.3,3.01532]
[1722440661846,3.0146,3317.2,3316.4,3.01531]
[1722440661847,2.36677126,3316.7,3316.4,3.01531]
[1722440662049,2.1996656,3316.7,3316.4,3.01531]
[1722440662247,2.1996656,3316.7,3316.5,3.01521]
[1722440662466,1.8975656,3316.7,3316.5,3.01521]
[1722440662946,2.2985,3317.0,3316.5,3.01521]
[1722440663153,0.16710039,3316.9,3316.5,3.01521]
[1722440663335,0.16710039,3316.8,3316.5,3.01521]
[1722440663558,4.89685499,3317.0,3316.4,3.01531]
[1722440663758,0.16709359,3316.9,3316.4,3.01531]
[1722440663961,1.88772466,3316.5,3316.4,3.01531]
[1722440664166,1.88772466,3316.5,3316.4,3.71700259]
[1722440664397,7.91502583,3317.0,3316.4,0.70169259]
[1722440664715,7.91502583,3317.0,3316.3,3.0154]
[1722440664716,0.16700171,3316.9,3316.3,3.0154]
[1722440664988,1.8869532,3316.4,3316.3,3.0154]
[1722440666090,7.91502583,3317.0,3316.3,3.0154]
[1722440666295,0.16699953,3316.9,3316.3,3.0154]
[1722440666455,0.16699953,3316.8,3316.3,3.0154]
[1722440666656,0.16699953,3316.7,3316.3,3.0154]
[1722440666883,5.31329,3317.0,3316.3,3.0154]
[1722440667083,1.88673381,3316.4,3316.3,3.01534]
[1722440667390,1.88673381,3316.4,3316.3,3.549704]
[1722440667560,2.20126031,3316.6,3316.3,3.549704]
[1722440667760,2.20126031,3316.6,3316.3,3.01534]
[1722440667963,2.20126031,3316.6,3315.6,3.016]
[1722440667964,0.16707423,3316.5,3315.6,3.016]
[1722440668164,1.88614528,3316.0,3315.8,3.01579]
[1722440668366,0.16707423,3316.4,3315.5,3.01609]
[1722440668367,1.88614528,3315.9,3315.5,3.01609]
[1722440668586,1.88614528,3315.7,3315.5,3.556869]
[1722440668799,1.88614528,3315.6,3315.5,3.556869]
[1722440669167,1.88614528,3315.7,3315.5,3.556869]
[1722440669374,1.88614528,3315.7,3315.5,3.01609]
[1722440669789,1.88614528,3315.7,3315.6,3.01604]
[1722440669959,1.88614528,3315.8,3315.6,3.01604]
[1722440670156,1.88540372,3315.8,3315.6,3.01604]
[1722440670452,1.88540372,3315.9,3315.6,3.01597]
[1722440671799,1.88540372,3315.9,3315.7,0.09815785]
[1722440672285,1.88540372,3315.8,3315.4,3.01617]
[1722440672481,1.57004771,3315.5,3315.4,3.01617]
[1722440672883,1.57017331,3315.5,3315.4,3.01617]
[1722440673127,5.21522768,3316.1,3315.4,3.01617]
[1722440673128,1.88540372,3315.7,3315.4,3.01617]
[1722440673331,3.01559,3316.1,3315.4,3.01617]
[1722440673504,1.88391157,3315.7,3315.4,3.01617]
[1722440674189,1.56959337,3315.5,3315.4,3.01617]
[1722440675109,1.56959337,3315.5,3315.4,6.03233]
[1722440675110,1.56952269,3315.5,3315.4,6.03233]
[1722440675320,1.56952269,3315.5,3315.4,3.01616]
[1722440676257,1.56906585,3315.5,3315.4,3.01616]
[1722440676667,1.56903177,3315.5,3315.4,3.01616]
[1722440677137,1.56903177,3315.6,3315.4,3.01616]
[1722440677341,1.26693177,3315.6,3315.5,3.01613]
[1722440677524,1.26693177,3315.7,3315.6,3.01604]
[1722440677723,1.88283813,3316.0,3315.7,3.01588]
[1722440677918,1.88283813,3316.0,3315.5,3.01605]
[1722440678140,1.56872317,3315.7,3315.5,3.6796072]
[1722440678467,1.56872317,3315.6,3315.5,3.6796072]
[1722440678672,1.56872317,3315.6,3315.5,3.01605]
[1722440678890,1.88283813,3315.8,3315.4,3.01622]
[1722440679168,1.88283813,3315.8,3315.3,3.01625]
[1722440679473,1.56817169,3315.5,3315.4,3.01621]
[1722440679968,1.88174966,3315.7,3315.2,3.0164]
[1722440680123,1.56811674,3315.3,3315.2,3.0164]
[1722440680320,2.92453381,3315.8,3315.2,3.0164]
[1722440680321,1.56811674,3315.4,3315.2,3.0164]
[1722440680565,1.56811674,3315.4,3315.1,3.01647]
[1722440680724,1.56811674,3315.3,3315.1,3.01647]
[1722440681138,1.56811674,3315.4,3315.1,3.01647]
[1722440681334,1.56811674,3315.2,3314.9,3.01662]
[1722440681786,1.56811674,3315.1,3314.8,3.0167]
[1722440682981,1.56811674,3315.3,3315.0,3.01659]
[1722440683181,7.1078,3315.7,3315.2,3.0164]
[1722440683366,1.56665817,3315.4,3315.2,3.0164]
[1722440684077,1.56665817,3315.4,3315.3,3.01631]
[1722440684284,1.56665817,3315.6,3315.5,3.01613]
[1722440684583,1.56665817,3315.8,3315.6,3.01596]
[1722440684795,2.4812,3316.2,3315.5,3.3237754]
[1722440684796,1.56665817,3315.9,3315.7,3.01594]
[1722440685082,1.56665817,3315.8,3315.7,3.01594]
[1722440685264,1.56665817,3315.9,3315.8,3.01586]
[1722440685464,1.56665817,3316.1,3315.9,3.01577]
[1722440685975,8.98778981,3316.4,3316.1,3.01559]
[1722440685976,1.56665817,3316.2,3316.1,3.01559]
[1722440686177,7.1078,3316.4,3316.1,3.01559]
[1722440686473,1.56602742,3316.2,3316.1,3.11100739]
[1722440686677,1.56602742,3316.2,3316.1,0.09541739]
[1722440686879,1.56602742,3316.2,3316.1,3.01559]
[1722440687188,1.56602742,3316.3,3316.1,0.09541739]
[1722440687366,1.87998981,3316.6,3316.1,0.09541739]
[1722440687367,1.87998981,3316.5,3316.1,0.09541739]
[1722440687544,1.87998981,3316.4,3316.1,0.09541739]
[1722440687743,1.56609798,3316.2,3315.9,3.01577]